lending/lending_fUSD_20240512
["ID","MTS","AMOUNT","RATE_DAILY","PERIOD"]
[326835594,1715488149251,-889.99640812,9.342e-05,2]
[326835595,1715488159194,155.0,8.356e-05,2]
[326835596,1715488163230,366.46658837,8.356e-05,2]
[326835597,1715488164712,564.78276629,6.685e-05,2]
[326835598,1715488164856,155.0,8.356e-05,2]
[326835599,1715488170182,-125.72691394,9.342e-05,2]
[326835600,1715488170202,-155.0,0.0001,2]
[326835601,1715488170223,-208.40272462,0.00010139,2]
[326835602,1715488170245,-250.0,0.00010397,2]
[326835603,1715488170268,-935.49970646,0.0001067,2]
[326835604,1715488179623,366.46658837,8.356e-05,2]
[326835605,1715488181972,155.0,8.356e-05,2]
[326835606,1715488185156,155.0,8.356e-05,2]
[326835607,1715488199192,265.79331966,8.356e-05,2]
[326835608,1715488199242,366.46547737,8.356e-05,2]
[326835609,1715488202872,243.10680479,8.356e-05,2]
[326835610,1715488221072,4000.00000001,8.356e-05,2]
[326835613,1715488231650,-776.61022031,0.00010616,2]
[326835614,1715488231710,-759.53977969,0.00010616,2]
[326835615,1715488231720,-544.42029354,0.0001067,2]
[326835616,1715488231729,-1028.89,0.00010822,2]
[326835617,1715488231739,-1500.0,0.00010942,2]
[326835618,1715488231748,-297.0,0.00010945,2]
[326835619,1715488231758,-499.99,0.00010945,2]
[326835620,1715488231767,-297.0,0.00010948,2]
[326835621,1715488231777,-297.0,0.00010951,2]
[326835622,1715488231786,-297.0,0.00010953,2]
[326835623,1715488231795,-297.0,0.00010956,2]
[326835624,1715488231805,-300.0,0.00010957,2]
[326835625,1715488231814,-1235.15992677,0.00010958,2]
[326835626,1715488231849,-3504.22269355,0.00010958,2]
[326835627,1715488231859,-597.67,0.00010959,2]
[326835628,1715488231869,-226.39,0.00010959,2]
[326835629,1715488231878,-188.66,0.00010959,2]
[326835630,1715488231887,-157.22,0.00010959,2]
[326835631,1715488231897,-786.11,0.00010959,2]
[326835632,1715488231906,-297.0,0.00010959,2]
[326835633,1715488231916,-297.0,0.00010962,2]
[326835634,1715488231925,-297.0,0.00010965,2]
[326835635,1715488231934,-297.0,0.00010968,2]
[326835636,1715488231944,-297.0,0.00010971,2]
[326835637,1715488231953,-297.0,0.00010974,2]
[326835638,1715488231962,-297.0,0.00010976,2]
[326835639,1715488231971,-297.0,0.00010979,2]
[326835640,1715488231981,-297.0,0.00010982,2]
[326835641,1715488231990,-297.0,0.00010985,2]
[326835642,1715488232000,-297.0,0.00010988,2]
[326835643,1715488232009,-297.0,0.00010991,2]
[326835644,1715488232018,-297.0,0.00010994,2]
[326835645,1715488232028,-297.0,0.00010997,2]
[326835646,1715488232037,-297.0,0.00010999,2]
[326835647,1715488232047,-3056.05,0.00011072,2]
[326835648,1715488232056,-772.3,0.00011124,2]
[326835649,1715488232066,-14957.87313155,0.00011158,2]
[326835650,1715488232077,-4574.59801111,0.00011158,2]
[326835651,1715488232100,-4367.52885734,0.00011158,2]
[326835652,1715488232110,-200.0,0.00011308,2]
[326835653,1715488232119,-158.33,0.0001145,2]
[326835654,1715488232128,-1000.0,0.00011474,2]
[326835655,1715488232138,-500.0,0.00011496,2]
[326835656,1715488232147,-250.0,0.00011502,2]
[326835657,1715488232157,-165.22,0.00011594,2]
[326835658,1715488232166,-165.53963886,0.00011858,2]
[326835659,1715488232177,-166.57,0.00011859,2]
[326835660,1715488232187,-160.0,0.00011955,2]
[326835661,1715488232196,-301.0,0.00012041,2]
[326835662,1715488232205,-425.92,0.0001205,2]
[326835663,1715488232214,-414.85,0.00012466,2]
[326835664,1715488232224,-200.0,0.000125,4]
[326835665,1715488232234,-1322.82533,0.0001255,2]
[326835666,1715488232243,-3115.1191,0.00012576,2]
[326835667,1715488232252,-7500.0,0.00012576,2]
[326835668,1715488232262,-2500.0,0.00012576,2]
[326835669,1715488232272,-1000.0,0.00012578,2]
[326835670,1715488232281,-1019.12833181,0.00012578,2]
[326835671,1715488232292,-322.91174239,0.00012578,2]
[326835672,1715488232312,-451.92492773,0.00012578,2]
[326835675,1715488237668,-848.26710872,0.00012578,2]
[326835676,1715488239220,-65025.49818935,0.00012578,2]
[326835677,1715488239230,-258.2644,0.00012578,2]
[326835678,1715488239240,-164.08,0.00012589,2]
[326835679,1715488239252,-265.18505592,0.00012597,2]
[326835680,1715488239262,-278.07508379,0.00012598,2]
[326835681,1715488239272,-1009.0,0.000126,2]
[326835682,1715488239281,-1000.0,0.000126,2]
[326835683,1715488239291,-1000.0,0.000126,2]
[326835684,1715488239301,-1000.0,0.000126,2]
[326835685,1715488239310,-1002.0,0.000126,2]
[326835686,1715488239320,-1000.0,0.000126,2]
[326835687,1715488239329,-500.0,0.000126,4]
[326835688,1715488239338,-187.00835459,0.00012665,2]
[326835689,1715488239348,-2469.25598363,0.00012667,2]
[326835690,1715488239358,-156.04240266,0.00012674,2]
[326835691,1715488239369,-204.39823741,0.00012674,2]
[326835692,1715488239379,-237.03062149,0.00012674,2]
[326835693,1715488239389,-155.0,0.00012674,2]
[326835694,1715488239399,-207.66872915,0.00012674,2]
[326835695,1715488239410,-155.09276703,0.00012674,2]
[326835696,1715488239420,-326.40225063,0.00012674,2]
[326835697,1715488239430,-4272.63704827,0.00012674,2]
[326835698,1715488239440,-155.0,0.00012675,2]
[326835699,1715488239449,-22793.45591556,0.00012676,2]
[326835700,1715488239459,-169.36092359,0.00012677,2]
[326835701,1715488239468,-800.0,0.000127,4]
[326835702,1715488239478,-409.14705859,0.00012797,2]
[326835703,1715488239487,-155.0999391,0.00012797,2]
[326835704,1715488239497,-782.60343627,0.00012797,2]
[326835705,1715488239506,-155.30025355,0.00012797,2]
[326835706,1715488239516,-154065.54313488,0.00012797,2]
[326835710,1715488239599,-533724.92436064,0.00012797,2]
[326835712,1715488239609,-155.0,0.00012798,2]
[326835714,1715488239620,-1100.0,0.000128,4]
[326835716,1715488239630,-500.0,0.00012895,2]
[326835718,1715488239639,-202.326959,0.00012896,2]
[326835720,1715488239649,-500.0,0.00012896,2]
[326835722,1715488239659,-9423.93981402,0.000129,2]
[326835724,1715488239668,-1400.0,0.000129,4]
[326835726,1715488239678,-280.87092012,0.000129,2]
[326835728,1715488239688,-1000.0,0.00012908,2]
[326835730,1715488239697,-151.02,0.0001299,2]
[326835732,1715488239706,-164.08,0.0001299,2]
[326835734,1715488239715,-320.14317612,0.00012997,2]
[326835736,1715488239725,-414.05733464,0.00012998,2]
[326835738,1715488239734,-196.66246988,0.00012998,2]
[326835739,1715488239744,-2951.08616645,0.00012999,2]
[326835740,1715488239753,-60298.80779232,0.00013,2]
[326835741,1715488239763,-1005.22632889,0.00013,2]
[326835742,1715488239773,-302.69182012,0.00013,2]
[326835743,1715488239783,-60897.71118733,0.00013,2]
[326835773,1715488240071,-6305.4,0.00013,2]
[326835777,1715488240103,-385.64179113,0.00013,2]
[326835779,1715488240114,-268.8280157,0.00013,2]
[326835845,1715488240780,-2560.0,0.00013,2]
[326835848,1715488240802,-1450.12629992,0.00013,2]
[326835853,1715488240869,-319.58,0.00013,2]
[326835854,1715488240886,-488.80520137,0.00013,2]
[326835855,1715488240898,-795.77505706,0.00013,2]
[326835883,1715488243193,-199.19296421,0.000129,2]
[326835884,1715488243202,-419.42525324,0.00013,2]
[326835885,1715488243215,-19211.18656797,0.00013,2]
[326835886,1715488243225,-691.35541829,0.00013,2]
[326835887,1715488243236,-306.22623,0.00013,2]
[326835889,1715488247510,-165.53963886,0.00012999,2]
[326835890,1715488247756,-1834.46036114,0.00013,2]
[326835891,1715488247785,-1221.72,0.00013,2]
[326835892,1715488247796,-456.80005735,0.00013,2]
[326835900,1715489363135,-155.0,8.999e-05,2]
[326835901,1715489363155,-150.0,9e-05,2]
[326835905,1715489431987,-250.0,0.00011302,2]
[326835906,1715489431996,-250.0,0.00011313,2]
[326835907,1715489432006,-166.62373915,0.00011461,2]
[326835908,1715489432015,-680.16336067,0.00011467,2]
[326835909,1715489432027,-6.42663933,0.00011467,2]
[326835910,1715489432036,-150.0,0.00011561,2]
[326835911,1715489432045,-5086.2,0.00011562,2]
[326835912,1715489432054,-160.0,0.00011596,2]
[326835913,1715489432063,-319.59,0.00011596,2]
[326835914,1715489432073,-223.01,0.00011596,2]
[326835915,1715489432082,-234.08,0.00011616,2]
[326835916,1715489432091,-1000.0,0.00011745,2]
[326835917,1715489432100,-996.14,0.00011787,2]
[326835918,1715489432110,-499.99,0.00011864,2]
[326835919,1715489432119,-150.0,0.00012,2]
[326835920,1715489432128,-150.99,0.00012,2]
[326835921,1715489432137,-156.9171886,0.00012139,2]
[326835922,1715489432146,-2500.0,0.00012297,2]
[326835923,1715489432155,-7500.0,0.00012298,2]
[326835924,1715489432164,-154.93103456,0.00012298,2]
[326835925,1715489432173,-155.39633957,0.00012387,2]
[326835926,1715489432182,-157.30501999,0.00012395,2]
[326835927,1715489432191,-180.34631338,0.00012396,2]
[326835928,1715489432200,-43732.49668857,0.00012397,2]
[326835929,1715489432321,-3836.3329704,0.00012397,2]
[326835930,1715489432332,-779.54000024,0.00012397,2]
[326835932,1715489432363,-444.06,0.00012397,2]
[326835935,1715489432379,-611.37,0.00012397,2]
[326835936,1715489432400,-426.64000004,0.00012397,2]
[326835939,1715489437924,-7500.0,0.00012298,2]
[326835940,1715489437934,-637960.02783627,0.00012397,2]
[326835941,1715489437944,-100000.0,0.00012398,2]
[326835942,1715489437953,-2585.0896,0.00012398,2]
[326835943,1715489437963,-170.61057527,0.000124,2]
[326835944,1715489437973,-156.47964379,0.000124,2]
[326835945,1715489437982,-171.03,0.0001248,2]
[326835946,1715489437991,-410.70421781,0.00012496,2]
[326835947,1715489438000,-11451.19380022,0.00012497,2]
[326835948,1715489438009,-9423.93981402,0.00012498,2]
[326835949,1715489438019,-154.93103454,0.00012498,2]
[326835950,1715489438029,-60298.80779232,0.00012499,2]
[326835951,1715489438040,-344914.2264,0.00012499,2]
[326835952,1715489438051,-155.44316151,0.000125,2]
[326835953,1715489438061,-1000.0,0.00012598,2]
[326835954,1715489438070,-154.93103454,0.00012698,2]
[326835955,1715489438079,-122500.90567581,0.00012699,2]
[326835956,1715489438096,-2514.14874685,0.00012699,2]
[326835957,1715489438138,-119984.94557734,0.00012699,2]
[326835958,1715489438147,-159.90810928,0.0001271,2]
[326835959,1715489438156,-210.0,0.00012717,2]
[326835960,1715489438165,-3072.25414526,0.00012717,2]
[326835961,1715489438174,-150.0,0.00012732,2]
[326835962,1715489438184,-150.0,0.00012742,2]
[326835963,1715489438192,-156.28995828,0.00012758,2]
[326835964,1715489438201,-150.0,0.00012791,2]
[326835965,1715489438210,-150.0,0.0001282,2]
[326835966,1715489438219,-150.0,0.0001284,2]
[326835967,1715489438228,-150.0,0.00012849,2]
[326835968,1715489438237,-150.0,0.00012868,2]
[326835969,1715489438246,-150.0,0.00012869,2]
[326835970,1715489438255,-150.0,0.00012881,2]
[326835971,1715489438264,-150.0,0.00012889,2]
[326835972,1715489438273,-150.0,0.00012893,2]
[326835973,1715489438283,-500.0,0.00012895,2]
[326835974,1715489438292,-202.071837,0.00012896,2]
[326835975,1715489438302,-202.326959,0.00012896,2]
[326835976,1715489438312,-500.0,0.00012896,2]
[326835977,1715489438321,-154.93103454,0.00012898,2]
[326835978,1715489438330,-280.87092012,0.000129,2]
[326835979,1715489438339,-337.4070711,0.000129,2]
[326835980,1715489438348,-2606.05383574,0.000129,2]
[326835981,1715489438357,-150.0,0.00012906,2]
[326835982,1715489438367,-150.0,0.00012918,2]
[326835983,1715489438376,-150.0,0.00012918,2]
[326835984,1715489438385,-150.0,0.00012925,2]
[326835985,1715489438394,-150.0,0.00012927,2]
[326835986,1715489438403,-150.0,0.00012928,2]
[326835987,1715489438412,-150.0,0.00012941,2]
[326835988,1715489438421,-150.0,0.00012948,2]
[326835989,1715489438431,-286.89085874,0.00012971,2]
[326835990,1715489438440,-150.0,0.00012972,2]
[326835991,1715489438449,-150.0,0.00012976,2]
[326835992,1715489438458,-2229.676938,0.0001299,2]
[326835993,1715489438467,-151.02,0.0001299,2]
[326835994,1715489438476,-257.85125369,0.00012997,2]
[326835995,1715489438486,-159.26472553,0.00012997,2]
[326835996,1715489438495,-239.13785843,0.00012997,2]
[326835997,1715489438504,-158.45591692,0.00012997,2]
[326835998,1715489438513,-414.05733464,0.00012997,2]
[326835999,1715489438522,-320.14317612,0.00012997,2]
[326836000,1715489438531,-268.20527789,0.00012997,2]
[326836001,1715489438541,-320.98051678,0.00012997,2]
[326836002,1715489438550,-2793.37443521,0.00012997,2]
[326836003,1715489438559,-1344.0657478,0.00012998,2]
[326836004,1715489438568,-158.42386762,0.00012998,2]
[326836005,1715489438578,-5268.69051153,0.00012998,2]
[326836006,1715489438587,-216.97621547,0.00012998,2]
[326836007,1715489438595,-319.39260741,0.00012998,2]
[326836008,1715489438605,-218.16293507,0.00012998,2]
[326836009,1715489438614,-155.33465603,0.00012998,2]
[326836010,1715489438624,-156.40126213,0.00012998,2]
[326836011,1715489438634,-196.66246988,0.00012998,2]
[326836012,1715489438643,-1254.98401423,0.00012999,2]
[326836013,1715489438653,-210.46600037,0.00012999,2]
[326836014,1715489438935,-474.78852769,0.00012999,2]
[326836015,1715489438944,-193.4563077,0.00012999,2]
[326836016,1715489438954,-266.15160659,0.00012999,2]
[326836017,1715489438963,-204.11016203,0.00012999,2]
[326836018,1715489438972,-1762.47551282,0.00012999,2]
[326836019,1715489438981,-1536037.81047477,0.00013,2]
[326836020,1715489438993,-388667.83291617,0.00013,2]
[326836021,1715489439052,-0.00568848,0.00013,2]
[326836022,1715489439078,-6113.6,0.00013,2]
[326836023,1715489439089,-5864.60000002,0.00013,2]
[326836024,1715489439110,-2298.34491096,0.00013,2]
[326836025,1715489439121,-471.123024,0.00013,2]
[326836026,1715489439144,-1478.26174416,0.00013,2]
[326836027,1715489440070,-525.90180924,0.00013,2]
[326836028,1715489440206,-892.19844599,0.00013,2]
[326836029,1715489440217,-500.49766,0.00013,2]
[326836030,1715489440279,-580.76486239,0.00013,2]
[326836031,1715489440353,-552.33090042,0.00013,2]
[326836032,1715489440364,-1050.0,0.00013,2]
[326836033,1715489440379,-3115.52135216,0.00013,2]
[326836034,1715489440441,-356.19588052,0.00013,2]
[326836035,1715489440452,-1342.22,0.00013,2]
[326836047,1715489443046,-1223.34715648,0.00012297,2]
[326836048,1715489443305,-3033.69858913,0.00012297,2]
[326836049,1715489443374,-8252.32631739,0.00012297,2]
[326836100,1715489445974,-37583.55279399,0.00012297,2]
[326836101,1715489446283,-8544.02071413,0.00012297,2]
[326836106,1715490632158,-217.20437047,0.00011629,2]
[326836107,1715490632167,-250.0,0.0001163,2]
[326836108,1715490632176,-250.0,0.00011723,2]
[326836109,1715490632186,-71.2725294,0.00011761,2]
[326836110,1715490632198,-385.7774706,0.00011761,2]
[326836111,1715490632207,-165.22,0.00011778,2]
[326836112,1715490632216,-760.52562953,0.00011845,2]
[326836113,1715490632227,-397.08384421,0.00011845,2]
[326836114,1715490632239,-5328.68942626,0.00011845,2]
[326836115,1715490632247,-1000.0,0.00011889,2]
[326836116,1715490632256,-384.97036684,0.00011945,2]
[326836117,1715490632266,-150.0,0.00011999,2]
[326836118,1715490632276,-10615.81522646,0.00012,2]
[326836119,1715490632335,-280.56667432,0.00012,2]
[326836120,1715490632346,-2189.4,0.00012,2]
[326836121,1715490632526,-8359.13953205,0.00012,2]
[326836458,1715490638127,-1769.80409418,0.00012,2]
[326836465,1715490638193,-37670.64549355,0.00012,2]
[326836466,1715490638202,-499.99,0.00012,2]
[326836467,1715490638211,-150.99,0.00012,2]
[326836468,1715490638221,-157.21922892,0.00012144,2]
[326836469,1715490638230,-159.73347028,0.00012196,2]
[326836470,1715490638239,-1000.0,0.00012197,2]
[326836471,1715490638249,-2500.0,0.00012197,2]
[326836472,1715490638258,-186363.05442888,0.00012297,2]
[326836473,1715490638268,-725.7876,0.00012297,2]
[326836474,1715490638277,-170.94541903,0.00012324,2]
[326836475,1715490638286,-159.73347028,0.00012407,2]
[326836476,1715490638295,-156.9171886,0.00012459,2]
[326836477,1715490638304,-3072.25414526,0.00012706,2]
[326836478,1715490638314,-150.0,0.00012726,2]
[326836479,1715490638323,-150.0,0.00012733,2]
[326836480,1715490638333,-150.0,0.0001274,2]
[326836481,1715490638342,-150.0,0.00012743,2]
[326836482,1715490638351,-150.0,0.00012751,2]
[326836483,1715490638360,-150.0,0.00012773,2]
[326836484,1715490638369,-150.0,0.00012774,2]
[326836485,1715490638378,-150.0,0.00012777,2]
[326836486,1715490638388,-150.0,0.00012801,2]
[326836487,1715490638397,-150.0,0.00012813,2]
[326836488,1715490638406,-150.0,0.00012813,2]
[326836489,1715490638416,-150.0,0.00012821,2]
[326836490,1715490638425,-150.0,0.00012826,2]
[326836491,1715490638434,-150.0,0.00012839,2]
[326836492,1715490638443,-150.0,0.00012858,2]
[326836493,1715490638452,-150.0,0.00012862,2]
[326836494,1715490638462,-150.0,0.00012871,2]
[326836495,1715490638471,-286.89085874,0.00012875,2]
[326836496,1715490638481,-150.0,0.00012882,2]
[326836497,1715490638490,-150.0,0.00012889,2]
[326836498,1715490638499,-154.93103454,0.00012891,2]
[326836499,1715490638508,-334.52430054,0.00012891,2]
[326836500,1715490638519,-500.0,0.00012895,2]
[326836501,1715490638528,-202.326959,0.00012896,2]
[326836502,1715490638537,-202.071837,0.00012896,2]
[326836503,1715490638547,-500.0,0.00012896,2]
[326836504,1715490638556,-7500.0,0.00012899,2]
[326836505,1715490638565,-6919.56642487,0.000129,2]
[326836506,1715490638619,-1719.04507126,0.000129,2]
[326836507,1715490638628,-280.87092012,0.000129,2]
[326836508,1715490638638,-337.4070711,0.000129,2]
[326836509,1715490638647,-150.0,0.00012952,2]
[326836510,1715490638657,-150.0,0.00012954,2]
[326836511,1715490638666,-160.0,0.0001299,2]
[326836512,1715490638675,-160.5603483,0.0001299,2]
[326836513,1715490638684,-5774.9312591,0.0001299,2]
[326836514,1715490638693,-701.0342763,0.0001299,2]
[326836515,1715490638703,-6403.6719473,0.0001299,2]
[326836516,1715490638712,-151.02,0.0001299,2]
[326836517,1715490638722,-818.5375705,0.00012991,2]
[326836518,1715490638732,-654.043265,0.00012991,2]
[326836519,1715490638741,-489.5489594,0.00012991,2]
[326836520,1715490638751,-325.0546538,0.00012991,2]
[326836521,1715490638765,-29440.6324649,0.00012991,2]
[326836522,1715490638775,-23524.2071634,0.00012991,2]
[326836523,1715490638785,-17607.781862,0.00012991,2]
[326836524,1715490638796,-11691.3565606,0.00012991,2]
[326836525,1715490638805,-3573.8767355,0.00012991,2]
[326836526,1715490638817,-2855.6661207,0.00012991,2]
[326836527,1715490638827,-2137.4555059,0.00012991,2]
[326836528,1715490638840,-1419.2448911,0.00012991,2]
[326836529,1715490638849,-32645.9560759,0.00012991,2]
[326836530,1715490638858,-26085.3850438,0.00012991,2]
[326836531,1715490638867,-19524.8140116,0.00012991,2]
[326836532,1715490638876,-12964.2429795,0.00012991,2]
[326836533,1715490638887,-427.79115464,0.00012992,2]
[326836534,1715490638896,-5268.69051153,0.00012997,2]
[326836535,1715490638906,-268.20527789,0.00012997,2]
[326836536,1715490638916,-210.46600037,0.00012997,2]
[326836537,1715490638926,-193.4563077,0.00012997,2]
[326836538,1715490638935,-257.85125369,0.00012997,2]
[326836539,1715490638945,-155.33465603,0.00012997,2]
[326836540,1715490638955,-474.78852769,0.00012997,2]
[326836541,1715490638965,-156.40126213,0.00012997,2]
[326836542,1715490638974,-158.42386762,0.00012997,2]
[326836543,1715490638983,-319.39260741,0.00012997,2]
[326836544,1715490638995,-266.15160659,0.00012997,2]
[326836545,1715490639005,-1344.0657478,0.00012997,2]
[326836546,1715490639015,-320.14317612,0.00012997,2]
[326836547,1715490639024,-414.05733464,0.00012997,2]
[326836548,1715490639032,-1254.98401423,0.00012997,2]
[326836549,1715490639042,-216.97621547,0.00012997,2]
[326836550,1715490639051,-320.98051678,0.00012997,2]
[326836551,1715490639060,-159.26472553,0.00012997,2]
[326836552,1715490639069,-239.13785843,0.00012997,2]
[326836553,1715490639078,-2793.37443521,0.00012997,2]
[326836554,1715490639087,-158.45591692,0.00012997,2]
[326836555,1715490639096,-633.85077905,0.00012997,2]
[326836556,1715490639105,-3418.5130709,0.00012998,2]
[326836557,1715490639114,-4736.57913706,0.00012998,2]
[326836558,1715490639123,-196.66246988,0.00012998,2]
[326836559,1715490639132,-54268.92701309,0.00012999,2]
[326836560,1715490639141,-587080.26386676,0.00012999,2]
[326836561,1715490639151,-204.11016203,0.00012999,2]
[326836562,1715490639160,-1762.47551282,0.00012999,2]
[326836563,1715490639169,-698143.40529832,0.00013,2]
[326836564,1715490639181,-228226.90561309,0.00013,2]
[326836565,1715490639190,-160440.92730308,0.00013,2]
[326836566,1715490639229,-365.26900912,0.00013,2]
[326836567,1715490639452,-771.65526251,0.00013,2]
[326836569,1715490640318,-304.36,0.00011852,2]
[326836570,1715490640331,-168550.01718667,0.00013,2]
[326836571,1715490640474,-1578.26863026,0.00013,2]
[326836572,1715490640564,-15642.04141401,0.00013,2]
[326836573,1715490640577,-302.69182012,0.00013,2]
[326836574,1715490640590,-6494.27722601,0.00013,2]
[326836575,1715490640671,-933.04790105,0.00013,2]
[326836580,1715490644018,-1139.83840532,0.00012999,2]
[326836581,1715490644059,-460.32635449,0.00012999,2]
[326836582,1715490644070,-162.31075301,0.00012999,2]
[326836583,1715490644080,-278.94269894,0.00013,2]
[326836584,1715490644125,-1134.26925039,0.00013,2]
[326836590,1715490646521,-218.05512287,0.00012999,2]
[326836591,1715490646532,-295.98668222,0.00013,2]
[326836592,1715490770207,2071.93603271,0.0001,14]
[326836593,1715490770228,10730.06396729,0.0001,14]
[326836601,1715491832382,-306.65890382,0.00012096,2]
[326836602,1715491832391,-984.70621681,0.00012097,2]
[326836603,1715491832420,-1515.29378319,0.00012097,2]
[326836604,1715491832430,-150.0,0.00012194,2]
[326836605,1715491832440,-155.0,0.00012195,2]
[326836606,1715491832450,-126.47922273,0.00012195,2]
[326836607,1715491832649,-656.5690472,0.00012195,2]
[326836608,1715491832659,-165.53963886,0.00012195,2]
[326836609,1715491832668,-409.38656773,0.00012195,2]
[326836610,1715491832678,-889.99640812,0.00012195,2]
[326836611,1715491832688,-155.0,0.00012195,2]
[326836612,1715491832698,-3505.02803539,0.00012197,2]
[326836613,1715491832709,-1132.19756582,0.00012197,2]
[326836614,1715491832720,-872.81,0.00012197,2]
[326836615,1715491832733,-1047.64718629,0.00012197,2]
[326836623,1715491838486,-6864.62995654,0.00012197,2]
[326836624,1715491838498,-1592.65686539,0.00012197,2]
[326836625,1715491838510,-2183.16426548,0.00012197,2]
[326836626,1715491838522,-227801.86612509,0.00012197,2]
[326836627,1715491838532,-169.61170162,0.00012349,2]
[326836628,1715491838542,-250.0,0.00012461,2]
[326836629,1715491838552,-202.23,0.00012623,2]
[326836630,1715491838562,-170.94541903,0.00012837,2]
[326836631,1715491838571,-499.99,0.00012837,2]
[326836632,1715491838581,-500.0,0.00012896,2]
[326836633,1715491838591,-9150.17278152,0.000129,2]
[326836634,1715491838601,-7500.0,0.000129,2]
[326836635,1715491838611,-163.838646,0.00012995,2]
[326836636,1715491838620,-11167.3258047,0.00012995,2]
[326836637,1715491838631,-562.44,0.00012995,2]
[326836638,1715491838646,-2335.1546083,0.00012995,2]
[326836639,1715491838657,-5261.0217674,0.00012995,2]
[326836640,1715491838667,-285.4003111,0.00012998,2]
[326836641,1715491838676,-271.22111327,0.00012998,2]
[326836642,1715491838687,-204.11016203,0.00012999,2]
[326836643,1715491838698,-1762.47551282,0.00012999,2]
[326836644,1715491838708,-48842.03431178,0.00013,2]
[326836645,1715491838718,-770916.8667094,0.00013,2]
[326836646,1715491838775,-531.79482725,0.00013,2]
[326836647,1715491838786,-457.34443648,0.00013,2]
[326836648,1715491838799,-311300.47628801,0.00013,2]
[326836649,1715491838808,-388809.51468516,0.00013,2]
[326836651,1715491838819,-226936.78797413,0.00013,2]
[326836652,1715491838841,-1223.14552,0.00013,2]
[326836653,1715491838851,-819.19323034,0.00013004,2]
[326836654,1715491838862,-150.0,0.00013204,2]
[326836655,1715491838872,-1000.0,0.00013372,2]
[326836656,1715491838883,-208.92,0.00013425,2]
[326836657,1715491838893,-1584.37,0.00013425,2]
[326836658,1715491838903,-169.61170162,0.00013454,2]
[326836659,1715491838913,-9150.17278152,0.00013536,2]
[326836660,1715491838922,-14799.0,0.00013573,2]
[326836661,1715491838932,-169.61170162,0.00013677,2]
[326836662,1715491838942,-200.0,0.00013699,2]
[326836663,1715491838952,-200.0,0.00013699,2]
[326836664,1715491838962,-200.0,0.00013699,2]
[326836665,1715491838971,-200.0,0.00013699,2]
[326836666,1715491838982,-200.0,0.00013699,2]
[326836667,1715491838992,-500.0,0.00013699,2]
[326836668,1715491839002,-280.87092008,0.00013814,2]
[326836669,1715491839013,-150.0,0.00013899,2]
[326836670,1715491839023,-3000.0,0.00014,2]
[326836671,1715491839033,-9150.17278152,0.00014173,2]
[326836672,1715491839043,-615.545332,0.00014387,2]
[326836673,1715491839053,-556.502884,0.00014387,2]
[326836674,1715491839063,-191.873102,0.00014387,2]
[326836675,1715491839074,-421.22,0.00014433,2]
[326836676,1715491839084,-880.5,0.00014433,2]
[326836677,1715491839094,-868.62,0.00014433,2]
[326836678,1715491839104,-868.62,0.00014433,2]
[326836679,1715491839115,-868.62,0.00014433,2]
[326836680,1715491839125,-868.62,0.00014433,2]
[326836681,1715491839134,-868.62,0.00014433,2]
[326836682,1715491839144,-868.62,0.00014433,2]
[326836683,1715491839158,-868.62,0.00014433,2]
[326836684,1715491839168,-338.62,0.00014433,2]
[326836685,1715491839178,-150.0,0.00014454,2]
[326836686,1715491839188,-268.86496,0.00014521,2]
[326836687,1715491839198,-4387.9815256,0.00014522,2]
[326836688,1715491839209,-9314.1639567,0.00014532,2]
[326836689,1715491839219,-1947.6473837,0.00014542,2]
[326836690,1715491839229,-10000.0,0.00014552,2]
[326836691,1715491839240,-615.545332,0.00014567,2]
[326836692,1715491839250,-556.502884,0.00014567,2]
[326836693,1715491839260,-156.9171886,0.0001458,2]